[Event "Early-Titled-Tuesday-Blitz-July-09-2024"]
[Site "Chess.com"]
[Date "2024.07.09"]
[Round "8"]
[White "slidingknight2775"]
[Black "Dedic8"]
[Result "1/2-1/2"]
[WhiteElo "2773"]
[BlackElo "2960"]
[TimeControl "180+1"]
[EndTime "9:31:52 PDT"]
[Termination "Game drawn by repetition"]

1. c4 {[%clk 0:03:00.9]} 1... Nf6 {[%clk 0:02:54.9]} 2. Nf3 {[%clk 0:02:59.1]}
2... e6 {[%clk 0:02:53.2]} 3. e3 {[%clk 0:02:58.5]} 3... d5 {[%clk 0:02:53.2]}
4. b3 {[%clk 0:02:59]} 4... Be7 {[%clk 0:02:50.7]} 5. Bb2 {[%clk 0:02:58.8]}
5... O-O {[%clk 0:02:50.5]} 6. Nc3 {[%clk 0:02:59]} 6... b6 {[%clk 0:02:49.2]}
7. cxd5 {[%clk 0:02:58.4]} 7... exd5 {[%clk 0:02:48.1]} 8. d4 {[%clk 0:02:58.3]}
8... c5 {[%clk 0:02:46.1]} 9. Rc1 {[%clk 0:02:49.6]} 9... Bg4 {[%clk 0:02:43.2]}
10. Be2 {[%clk 0:02:49.3]} 10... Nbd7 {[%clk 0:02:43.1]} 11. O-O {[%clk
0:02:46.9]} 11... Rc8 {[%clk 0:02:42.5]} 12. dxc5 {[%clk 0:01:55.7]} 12... Nxc5
{[%clk 0:02:39.9]} 13. h3 {[%clk 0:01:55]} 13... Bh5 {[%clk 0:02:32.6]} 14. Nb5
{[%clk 0:01:51.1]} 14... a6 {[%clk 0:02:19.5]} 15. Nbd4 {[%clk 0:01:50.9]} 15...
b5 {[%clk 0:02:17.4]} 16. Nf5 {[%clk 0:01:47.3]} 16... Bg6 {[%clk 0:01:37.1]}
17. Nxe7+ {[%clk 0:01:45.6]} 17... Qxe7 {[%clk 0:01:38]} 18. Nd4 {[%clk
0:01:34.9]} 18... b4 {[%clk 0:01:31.5]} 19. a3 {[%clk 0:01:14.6]} 19... a5
{[%clk 0:01:27.4]} 20. axb4 {[%clk 0:01:12.9]} 20... axb4 {[%clk 0:01:28.3]} 21.
Nb5 {[%clk 0:00:41.5]} 21... Rfd8 {[%clk 0:01:12.9]} 22. Bd4 {[%clk 0:00:30.4]}
22... Ne6 {[%clk 0:01:10.1]} 23. Rxc8 {[%clk 0:00:28.3]} 23... Rxc8 {[%clk
0:01:10.1]} 24. Bxf6 {[%clk 0:00:27.1]} 24... Qxf6 {[%clk 0:01:10.2]} 25. Qxd5
{[%clk 0:00:27.7]} 25... h6 {[%clk 0:01:03.9]} 26. Bc4 {[%clk 0:00:26.9]} 26...
Rc5 {[%clk 0:00:48.1]} 27. Qa8+ {[%clk 0:00:18.2]} 27... Kh7 {[%clk 0:00:48.4]}
28. f4 {[%clk 0:00:14.6]} 28... Qb2 {[%clk 0:00:26.2]} 29. Qf3 {[%clk
0:00:12.2]} 29... Qc2 {[%clk 0:00:22.1]} 30. Nd6 {[%clk 0:00:12.1]} 30... Qd2
{[%clk 0:00:12.5]} 31. Ne4 {[%clk 0:00:06.5]} 31... Bxe4 {[%clk 0:00:09.3]} 32.
Qxe4+ {[%clk 0:00:07.4]} 32... Kh8 {[%clk 0:00:08.1]} 33. Bxe6 {[%clk
0:00:06.3]} 33... fxe6 {[%clk 0:00:08.7]} 34. Qxe6 {[%clk 0:00:07.2]} 34... Rc3
{[%clk 0:00:09.4]} 35. Qe8+ {[%clk 0:00:06.9]} 35... Kh7 {[%clk 0:00:10]} 36.
Qe4+ {[%clk 0:00:07.4]} 36... Kh8 {[%clk 0:00:10.6]} 37. Qxb4 {[%clk 0:00:05.3]}
37... Qxe3+ {[%clk 0:00:10.3]} 38. Kh1 {[%clk 0:00:05.2]} 38... Rxb3 {[%clk
0:00:10.7]} 39. Qf8+ {[%clk 0:00:05]} 39... Kh7 {[%clk 0:00:11.4]} 40. Qf5+
{[%clk 0:00:05.5]} 40... Kh8 {[%clk 0:00:12.1]} 41. Rd1 {[%clk 0:00:05.3]} 41...
Rb8 {[%clk 0:00:12.3]} 42. Qg4 {[%clk 0:00:04.5]} 42... Qe7 {[%clk 0:00:11.6]}
43. Qf3 {[%clk 0:00:04.7]} 43... Qf6 {[%clk 0:00:11.6]} 44. Rf1 {[%clk
0:00:05.1]} 44... Re8 {[%clk 0:00:11.6]} 45. f5 {[%clk 0:00:05.4]} 45... Rd8
{[%clk 0:00:10.9]} 46. Qf4 {[%clk 0:00:04.7]} 46... Re8 {[%clk 0:00:11.3]} 47.
Qf3 {[%clk 0:00:05]} 47... Rf8 {[%clk 0:00:11.8]} 48. Qd3 {[%clk 0:00:04.7]}
48... Rd8 {[%clk 0:00:11.6]} 49. Qf3 {[%clk 0:00:05]} 49... Rf8 {[%clk
0:00:12.3]} 50. Qg4 {[%clk 0:00:05.2]} 50... Rd8 {[%clk 0:00:12.4]} 51. Qg6
{[%clk 0:00:05]} 51... Qxg6 {[%clk 0:00:08.4]} 52. fxg6 {[%clk 0:00:05.9]} 52...
Kg8 {[%clk 0:00:09]} 53. Ra1 {[%clk 0:00:03.8]} 53... Kf8 {[%clk 0:00:09]} 54.
Ra6 {[%clk 0:00:03.8]} 54... Rd7 {[%clk 0:00:07.8]} 55. Kh2 {[%clk 0:00:03.8]}
55... Ke7 {[%clk 0:00:08.4]} 56. h4 {[%clk 0:00:03.9]} 56... h5 {[%clk 0:00:06]}
57. Ra5 {[%clk 0:00:03.3]} 57... Kf6 {[%clk 0:00:04.7]} 58. Rxh5 {[%clk
0:00:03.8]} 58... Kxg6 {[%clk 0:00:05.3]} 59. Rg5+ {[%clk 0:00:04.5]} 59... Kf6
{[%clk 0:00:06]} 60. Ra5 {[%clk 0:00:05.4]} 60... Rd3 {[%clk 0:00:06]} 61. g3
{[%clk 0:00:05.8]} 61... Rd4 {[%clk 0:00:06.3]} 62. Kh3 {[%clk 0:00:06.1]} 62...
Kf7 {[%clk 0:00:06.8]} 63. Ra6 {[%clk 0:00:06.2]} 63... Kg8 {[%clk 0:00:07.1]}
64. h5 {[%clk 0:00:06.4]} 64... Kh7 {[%clk 0:00:07.7]} 65. g4 {[%clk 0:00:06.7]}
65... Rd5 {[%clk 0:00:07.9]} 66. Kh4 {[%clk 0:00:07]} 66... Rc5 {[%clk
0:00:08.3]} 67. Rb6 {[%clk 0:00:07.2]} 67... Rd5 {[%clk 0:00:08.7]} 68. Rc6
{[%clk 0:00:07.7]} 68... Ra5 {[%clk 0:00:08.9]} 69. Rc7 {[%clk 0:00:07.8]} 69...
Rb5 {[%clk 0:00:08.9]} 70. Rc6 {[%clk 0:00:05.4]} 70... Ra5 {[%clk 0:00:09.2]}
71. Rg6 {[%clk 0:00:04.8]} 71... Rb5 {[%clk 0:00:09.3]} 72. Rg5 {[%clk
0:00:05.1]} 72... Rb1 {[%clk 0:00:09]} 73. Ra5 {[%clk 0:00:05.6]} 73... Rb4
{[%clk 0:00:08.9]} 74. Kg5 {[%clk 0:00:05.6]} 74... Rc4 {[%clk 0:00:09.3]} 75.
Ra7 {[%clk 0:00:05.4]} 75... Rc5+ {[%clk 0:00:09.8]} 76. Kf4 {[%clk 0:00:05.7]}
76... Rc4+ {[%clk 0:00:10.2]} 77. Kg5 {[%clk 0:00:06]} 77... Rc5+ {[%clk
0:00:10.6]} 78. Kh4 {[%clk 0:00:06.3]} 78... Rc4 {[%clk 0:00:11.2]} 79. Ra6
{[%clk 0:00:05.5]} 79... Rb4 {[%clk 0:00:11.2]} 80. Rd6 {[%clk 0:00:04.9]} 80...
Ra4 {[%clk 0:00:11.4]} 81. Re6 {[%clk 0:00:05.4]} 81... Rb4 {[%clk 0:00:11.9]}
82. Kg3 {[%clk 0:00:05.8]} 82... Ra4 {[%clk 0:00:11.9]} 83. Kf3 {[%clk
0:00:06.3]} 83... Rb4 {[%clk 0:00:11.9]} 84. Re4 {[%clk 0:00:06.8]} 84... Rb5
{[%clk 0:00:12.2]} 85. Kf4 {[%clk 0:00:07.3]} 85... Ra5 {[%clk 0:00:12.9]} 86.
Re5 {[%clk 0:00:07.6]} 86... Ra1 {[%clk 0:00:12.8]} 87. Kf5 {[%clk 0:00:07]}
87... Rf1+ {[%clk 0:00:12.9]} 88. Kg5 {[%clk 0:00:06.8]} 88... Ra1 {[%clk
0:00:13.6]} 89. Rc5 {[%clk 0:00:06.6]} 89... Rb1 {[%clk 0:00:13.5]} 90. Ra5
{[%clk 0:00:05.7]} 90... Rf1 {[%clk 0:00:13.3]} 91. Kh4 {[%clk 0:00:05.2]} 91...
Rh1+ {[%clk 0:00:13.3]} 92. Kg3 {[%clk 0:00:05.8]} 92... Rf1 {[%clk 0:00:14]}
93. g5 {[%clk 0:00:05.7]} 93... Rh1 {[%clk 0:00:12.4]} 94. Kg4 {[%clk
0:00:04.3]} 94... Rg1+ {[%clk 0:00:12.9]} 95. Kh4 {[%clk 0:00:04.9]} 95... Rh1+
{[%clk 0:00:13.1]} 96. Kg4 {[%clk 0:00:05.5]} 96... Rg1+ {[%clk 0:00:13.8]} 97.
Kf5 {[%clk 0:00:05.1]} 97... Rf1+ {[%clk 0:00:14.3]} 98. Kg4 {[%clk 0:00:05.3]}
98... Rg1+ {[%clk 0:00:14.6]} 1/2-1/2

[Event "Early-Titled-Tuesday-Blitz-July-09-2024"]
[Site "Chess.com"]
[Date "2024.07.09"]
[Round "8"]
[White "Yaacovn"]
[Black "Oleksandr_Bortnyk"]
[Result "1/2-1/2"]
[WhiteElo "2801"]
[BlackElo "3057"]
[TimeControl "180+1"]
[EndTime "9:31:53 PDT"]
[Termination "Game drawn by repetition"]

1. d4 {[%clk 0:02:59.5]} 1... Nf6 {[%clk 0:02:59.4]} 2. e3 {[%clk 0:02:59.2]}
2... b6 {[%clk 0:02:59.4]} 3. f4 {[%clk 0:02:47.3]} 3... Bb7 {[%clk 0:02:59.7]}
4. Nf3 {[%clk 0:02:47.3]} 4... d6 {[%clk 0:02:59.8]} 5. Bd3 {[%clk 0:02:47.7]}
5... Nbd7 {[%clk 0:02:57.7]} 6. O-O {[%clk 0:02:47.7]} 6... h6 {[%clk
0:02:48.8]} 7. Nc3 {[%clk 0:02:47]} 7... g5 {[%clk 0:02:49.2]} 8. e4 {[%clk
0:02:46.1]} 8... g4 {[%clk 0:02:47.3]} 9. Nh4 {[%clk 0:02:45.9]} 9... e5 {[%clk
0:02:38.4]} 10. Nf5 {[%clk 0:02:38.6]} 10... exd4 {[%clk 0:02:34.9]} 11. Nxd4
{[%clk 0:02:38.6]} 11... Nc5 {[%clk 0:02:34.3]} 12. Bb5+ {[%clk 0:02:37.8]}
12... Nfd7 {[%clk 0:02:32.7]} 13. Qxg4 {[%clk 0:02:26.3]} 13... Qf6 {[%clk
0:02:14.5]} 14. e5 {[%clk 0:02:02.2]} 14... dxe5 {[%clk 0:02:14.3]} 15. fxe5
{[%clk 0:02:02.7]} 15... Qxe5 {[%clk 0:02:14.8]} 16. Nc6 {[%clk 0:02:00.8]}
16... Qe6 {[%clk 0:02:10.6]} 17. Qxe6+ {[%clk 0:01:27.8]} 17... Nxe6 {[%clk
0:02:11.5]} 18. Ne5 {[%clk 0:01:27.9]} 18... c6 {[%clk 0:02:04.8]} 19. Bxc6
{[%clk 0:01:19.8]} 19... Bxc6 {[%clk 0:01:59.7]} 20. Nxc6 {[%clk 0:01:20.3]}
20... Bc5+ {[%clk 0:01:51.1]} 21. Kh1 {[%clk 0:01:20]} 21... O-O {[%clk
0:01:34.7]} 22. Nd5 {[%clk 0:01:07.1]} 22... Kg7 {[%clk 0:01:33.5]} 23. b4
{[%clk 0:01:05.8]} 23... Bd6 {[%clk 0:01:30.9]} 24. Bb2+ {[%clk 0:01:06.2]}
24... Kh7 {[%clk 0:01:29.2]} 25. c4 {[%clk 0:01:00.2]} 25... a6 {[%clk
0:01:27.5]} 26. a4 {[%clk 0:00:59.9]} 26... Nc7 {[%clk 0:01:12.5]} 27. Rad1
{[%clk 0:00:47.2]} 27... Ne8 {[%clk 0:01:06]} 28. Rfe1 {[%clk 0:00:30.4]} 28...
Rg8 {[%clk 0:01:00.8]} 29. g3 {[%clk 0:00:29]} 29... Rg4 {[%clk 0:00:59.6]} 30.
Ne3 {[%clk 0:00:28.2]} 30... Re4 {[%clk 0:00:58.3]} 31. Nf5 {[%clk 0:00:27]}
31... Rxe1+ {[%clk 0:00:53.9]} 32. Rxe1 {[%clk 0:00:27.5]} 32... Bf8 {[%clk
0:00:52.9]} 33. Kg2 {[%clk 0:00:24.2]} 33... b5 {[%clk 0:00:50.2]} 34. cxb5
{[%clk 0:00:23.2]} 34... axb5 {[%clk 0:00:51.1]} 35. a5 {[%clk 0:00:22.1]} 35...
Nef6 {[%clk 0:00:43.2]} 36. Bxf6 {[%clk 0:00:20.2]} 36... Nxf6 {[%clk
0:00:44.1]} 37. Nfd4 {[%clk 0:00:19.7]} 37... Nd5 {[%clk 0:00:43]} 38. Nxb5
{[%clk 0:00:09.8]} 38... Nxb4 {[%clk 0:00:38.6]} 39. Nxb4 {[%clk 0:00:05.8]}
39... Rxa5 {[%clk 0:00:38.4]} 40. Nd5 {[%clk 0:00:04.3]} 40... Rxb5 {[%clk
0:00:37.9]} 41. Nf6+ {[%clk 0:00:04.9]} 41... Kg6 {[%clk 0:00:36.7]} 42. Ne4
{[%clk 0:00:05.8]} 42... Re5 {[%clk 0:00:35.8]} 43. Re2 {[%clk 0:00:05.2]} 43...
Bb4 {[%clk 0:00:35.3]} 44. Kf3 {[%clk 0:00:04.5]} 44... Rf5+ {[%clk 0:00:33.1]}
45. Kg2 {[%clk 0:00:04.9]} 45... Re5 {[%clk 0:00:34]} 46. Kf3 {[%clk 0:00:05.4]}
46... Ra5 {[%clk 0:00:34.4]} 47. Nf2 {[%clk 0:00:05.5]} 47... Ra3+ {[%clk
0:00:34.5]} 48. Kg2 {[%clk 0:00:05.8]} 48... Bc5 {[%clk 0:00:35.2]} 49. Ne4
{[%clk 0:00:05.8]} 49... Bd4 {[%clk 0:00:35.6]} 50. Rd2 {[%clk 0:00:05.9]} 50...
Be5 {[%clk 0:00:35.7]} 51. Re2 {[%clk 0:00:06.4]} 51... Ra1 {[%clk 0:00:35.6]}
52. Nf2 {[%clk 0:00:06.6]} 52... Bd4 {[%clk 0:00:36.1]} 53. Ng4 {[%clk
0:00:06.9]} 53... Rg1+ {[%clk 0:00:35.4]} 54. Kh3 {[%clk 0:00:07.3]} 54... f6
{[%clk 0:00:35.1]} 55. Nf2 {[%clk 0:00:06.3]} 55... h5 {[%clk 0:00:35.5]} 56.
Nd3 {[%clk 0:00:06.6]} 56... Rf1 {[%clk 0:00:33.6]} 57. Nf4+ {[%clk 0:00:06.9]}
57... Kh6 {[%clk 0:00:33.5]} 58. Re8 {[%clk 0:00:06.4]} 58... Be5 {[%clk
0:00:33.7]} 59. Rh8+ {[%clk 0:00:06.6]} 59... Kg7 {[%clk 0:00:33.3]} 60. Rxh5
{[%clk 0:00:07.3]} 60... Bxf4 {[%clk 0:00:33.7]} 61. Rf5 {[%clk 0:00:07.8]}
61... Ra1 {[%clk 0:00:20.8]} 62. Rxf4 {[%clk 0:00:08.2]} 62... Kg6 {[%clk
0:00:21.7]} 63. Kg4 {[%clk 0:00:08.4]} 63... Ra5 {[%clk 0:00:20.9]} 64. h4
{[%clk 0:00:08.7]} 64... Rb5 {[%clk 0:00:21.5]} 65. Rc4 {[%clk 0:00:08.6]} 65...
Ra5 {[%clk 0:00:21.9]} 66. Rd4 {[%clk 0:00:08.4]} 66... Rb5 {[%clk 0:00:22.4]}
67. Ra4 {[%clk 0:00:08.6]} 67... Rc5 {[%clk 0:00:23]} 68. Ra8 {[%clk 0:00:08.8]}
68... Rc4+ {[%clk 0:00:23.3]} 69. Kh3 {[%clk 0:00:09.3]} 69... Rb4 {[%clk
0:00:23.9]} 70. Rg8+ {[%clk 0:00:09.5]} 70... Kf7 {[%clk 0:00:24.6]} 71. Rg4
{[%clk 0:00:10]} 71... Rb5 {[%clk 0:00:25.2]} 72. Rf4 {[%clk 0:00:10.4]} 72...
Kg6 {[%clk 0:00:25.7]} 73. Rf3 {[%clk 0:00:10.5]} 73... Ra5 {[%clk 0:00:26]} 74.
g4 {[%clk 0:00:11]} 74... Rb5 {[%clk 0:00:26]} 75. Kg3 {[%clk 0:00:11.6]} 75...
Rb1 {[%clk 0:00:25.8]} 76. h5+ {[%clk 0:00:11.7]} 76... Kg7 {[%clk 0:00:26.3]}
77. Rd3 {[%clk 0:00:11.9]} 77... Rg1+ {[%clk 0:00:26.1]} 78. Kh3 {[%clk
0:00:12.2]} 78... Rh1+ {[%clk 0:00:26.4]} 79. Kg2 {[%clk 0:00:12.6]} 79... Rb1
{[%clk 0:00:26.3]} 80. Rd6 {[%clk 0:00:12.6]} 80... Rb3 {[%clk 0:00:26]} 81. Rd5
{[%clk 0:00:12.4]} 81... Ra3 {[%clk 0:00:26.3]} 82. Rf5 {[%clk 0:00:12.8]} 82...
Rb3 {[%clk 0:00:26.3]} 83. Rf3 {[%clk 0:00:13.2]} 83... Rb4 {[%clk 0:00:25.7]}
84. Kg3 {[%clk 0:00:13.6]} 84... Ra4 {[%clk 0:00:26.2]} 85. Rb3 {[%clk
0:00:13.8]} 85... Rc4 {[%clk 0:00:21.3]} 86. Rb7+ {[%clk 0:00:13.7]} 86... Kg8
{[%clk 0:00:21]} 87. Rd7 {[%clk 0:00:12]} 87... Ra4 {[%clk 0:00:20.4]} 88. h6
{[%clk 0:00:12.2]} 88... Ra1 {[%clk 0:00:17.3]} 89. h7+ {[%clk 0:00:10.4]} 89...
Kh8 {[%clk 0:00:16.8]} 90. Rf7 {[%clk 0:00:11.3]} 90... Ra5 {[%clk 0:00:13.8]}
91. Kh4 {[%clk 0:00:11.5]} 91... Rb5 {[%clk 0:00:14]} 92. Kh3 {[%clk 0:00:11.2]}
92... Rc5 {[%clk 0:00:13.9]} 93. Kg3 {[%clk 0:00:11.5]} 93... Rb5 {[%clk
0:00:14.4]} 94. Kf4 {[%clk 0:00:12]} 94... Ra5 {[%clk 0:00:14.9]} 95. Re7 {[%clk
0:00:12.3]} 95... Rb5 {[%clk 0:00:14.9]} 96. Rd7 {[%clk 0:00:12.8]} 96... Ra5
{[%clk 0:00:15.4]} 97. Rf7 {[%clk 0:00:13.4]} 97... Rc5 {[%clk 0:00:15.6]} 98.
Kg3 {[%clk 0:00:13.9]} 98... Rb5 {[%clk 0:00:16.1]} 99. Kh4 {[%clk 0:00:14.4]}
99... Ra5 {[%clk 0:00:16.6]} 100. Re7 {[%clk 0:00:13.7]} 100... Rb5 {[%clk
0:00:16.9]} 101. Rc7 {[%clk 0:00:13.9]} 101... Ra5 {[%clk 0:00:17.3]} 102. Rd7
{[%clk 0:00:14.2]} 102... Rc5 {[%clk 0:00:17.6]} 103. Rf7 {[%clk 0:00:14.3]}
103... Rb5 {[%clk 0:00:18.1]} 104. Kg3 {[%clk 0:00:14.8]} 104... Ra5 {[%clk
0:00:18.3]} 105. Kf4 {[%clk 0:00:15.3]} 105... Rb5 {[%clk 0:00:18.8]} 106. Rxf6
{[%clk 0:00:15.7]} 106... Kxh7 {[%clk 0:00:19.4]} 107. Rf5 {[%clk 0:00:16.2]}
107... Rb6 {[%clk 0:00:20]} 108. Kg5 {[%clk 0:00:16.8]} 108... Kg7 {[%clk
0:00:20.6]} 109. Rd5 {[%clk 0:00:16.8]} 109... Rg6+ {[%clk 0:00:20.8]} 110. Kh5
{[%clk 0:00:17.3]} 110... Rh6+ {[%clk 0:00:21.4]} 111. Kg5 {[%clk 0:00:17.8]}
111... Rg6+ {[%clk 0:00:22.3]} 112. Kh4 {[%clk 0:00:18.3]} 112... Rh6+ {[%clk
0:00:22.9]} 113. Rh5 {[%clk 0:00:18.4]} 113... Ra6 {[%clk 0:00:23.8]} 114. Rg5+
{[%clk 0:00:18.4]} 114... Kh7 {[%clk 0:00:24.3]} 115. Rh5+ {[%clk 0:00:18.4]}
115... Kg7 {[%clk 0:00:24.6]} 116. Rc5 {[%clk 0:00:19.1]} 116... Rh6+ {[%clk
0:00:24.5]} 117. Kg3 {[%clk 0:00:19.6]} 117... Ra6 {[%clk 0:00:24.7]} 118. Rc7+
{[%clk 0:00:19.8]} 118... Kg6 {[%clk 0:00:25]} 119. Rc3 {[%clk 0:00:20.7]}
119... Kg5 {[%clk 0:00:24.8]} 120. Rc5+ {[%clk 0:00:20.5]} 120... Kg6 {[%clk
0:00:25.4]} 121. Kh4 {[%clk 0:00:21.4]} 121... Kg7 {[%clk 0:00:26]} 122. Rd5
{[%clk 0:00:21.7]} 122... Rh6+ {[%clk 0:00:25.9]} 123. Kg5 {[%clk 0:00:21.6]}
123... Rg6+ {[%clk 0:00:26.5]} 1/2-1/2

[Event "Early-Titled-Tuesday-Blitz-July-09-2024"]
[Site "Chess.com"]
[Date "2024.07.09"]
[Round "8"]
[White "GilbertoHernandezAmura"]
[Black "nindjaxx8"]
[Result "0-1"]
[WhiteElo "2514"]
[BlackElo "2702"]
[TimeControl "180+1"]
[EndTime "9:32:11 PDT"]
[Termination "nindjaxx8 won by resignation"]

1. e4 {[%clk 0:02:51.7]} 1... e6 {[%clk 0:03:00.1]} 2. d3 {[%clk 0:02:50.5]}
2... d5 {[%clk 0:03:01]} 3. Qe2 {[%clk 0:02:51.1]} 3... dxe4 {[%clk 0:02:58.7]}
4. dxe4 {[%clk 0:02:52]} 4... c5 {[%clk 0:02:59.1]} 5. Nd2 {[%clk 0:02:51.1]}
5... Nc6 {[%clk 0:02:59.5]} 6. c3 {[%clk 0:02:51.4]} 6... Nf6 {[%clk 0:02:59.8]}
7. Ngf3 {[%clk 0:02:47.8]} 7... Be7 {[%clk 0:03:00.2]} 8. e5 {[%clk 0:02:41.5]}
8... Nd7 {[%clk 0:02:59.7]} 9. a4 {[%clk 0:02:41.8]} 9... Qc7 {[%clk 0:02:59.9]}
10. Nc4 {[%clk 0:02:42.2]} 10... b6 {[%clk 0:02:58.1]} 11. Bf4 {[%clk
0:02:38.5]} 11... O-O {[%clk 0:02:57.4]} 12. g3 {[%clk 0:02:31.1]} 12... Ba6
{[%clk 0:02:56.6]} 13. Bg2 {[%clk 0:02:21.8]} 13... Na5 {[%clk 0:02:51.3]} 14.
Nfd2 {[%clk 0:02:19]} 14... Rad8 {[%clk 0:02:48.7]} 15. h4 {[%clk 0:02:15.9]}
15... Nxc4 {[%clk 0:02:36.9]} 16. Nxc4 {[%clk 0:02:15.8]} 16... Bxc4 {[%clk
0:02:37.5]} 17. Qxc4 {[%clk 0:02:12]} 17... Nxe5 {[%clk 0:02:37.9]} 18. Qe4
{[%clk 0:02:08]} 18... Bd6 {[%clk 0:02:36.8]} 19. O-O {[%clk 0:02:01.1]} 19...
Ng6 {[%clk 0:02:34.6]} 20. Bg5 {[%clk 0:01:59.7]} 20... Be7 {[%clk 0:02:34.8]}
21. Be3 {[%clk 0:01:55.8]} 21... Bf6 {[%clk 0:02:32.5]} 22. a5 {[%clk
0:01:52.2]} 22... Ne7 {[%clk 0:02:26.8]} 23. Bf4 {[%clk 0:01:45.2]} 23... Qd7
{[%clk 0:02:25.3]} 24. axb6 {[%clk 0:01:43.1]} 24... axb6 {[%clk 0:02:26.2]} 25.
h5 {[%clk 0:01:35.2]} 25... h6 {[%clk 0:02:24.2]} 26. Bf3 {[%clk 0:01:24.2]}
26... Qb5 {[%clk 0:02:21.2]} 27. Ra2 {[%clk 0:01:16.6]} 27... Nf5 {[%clk
0:02:12.7]} 28. Qa4 {[%clk 0:01:06.9]} 28... Qd3 {[%clk 0:01:56.5]} 29. Qe4
{[%clk 0:01:01.5]} 29... Qd7 {[%clk 0:01:33.9]} 30. Be5 {[%clk 0:00:50.1]} 30...
Bxe5 {[%clk 0:01:32.7]} 31. Qxe5 {[%clk 0:00:51]} 31... Qd3 {[%clk 0:01:25.1]}
32. Be4 {[%clk 0:00:42.8]} 32... Qe2 {[%clk 0:01:23.6]} 33. Qf4 {[%clk
0:00:35.9]} 33... Rd1 {[%clk 0:01:15.4]} 34. Rxd1 {[%clk 0:00:30.9]} 34... Qxd1+
{[%clk 0:01:15.4]} 35. Kg2 {[%clk 0:00:30.4]} 35... Qxh5 {[%clk 0:01:15.9]} 36.
Bxf5 {[%clk 0:00:28.5]} 36... exf5 {[%clk 0:01:14]} 37. Qd6 {[%clk 0:00:23.5]}
37... Re8 {[%clk 0:01:05.9]} 38. Qd2 {[%clk 0:00:14.1]} 38... Re2 {[%clk
0:01:00.6]} 39. Qf4 {[%clk 0:00:14.4]} 39... Re1 {[%clk 0:00:59.4]} 40. Qh4
{[%clk 0:00:13.3]} 40... Qxh4 {[%clk 0:00:59.5]} 41. gxh4 {[%clk 0:00:14.2]}
41... Re2 {[%clk 0:00:57.9]} 42. Kf3 {[%clk 0:00:14.7]} 42... Rc2 {[%clk
0:00:58.1]} 43. h5 {[%clk 0:00:15.2]} 43... g5 {[%clk 0:00:54.5]} 44. Ke3 {[%clk
0:00:13.4]} 44... Kg7 {[%clk 0:00:53.9]} 45. f3 {[%clk 0:00:14]} 45... g4 {[%clk
0:00:54]} 46. fxg4 {[%clk 0:00:13.4]} 46... fxg4 {[%clk 0:00:54.9]} 47. Kf4
{[%clk 0:00:14.2]} 47... Rg2 {[%clk 0:00:53.5]} 48. Ra6 {[%clk 0:00:11.9]} 48...
Rxb2 {[%clk 0:00:53.6]} 49. Kxg4 {[%clk 0:00:12]} 49... Rb3 {[%clk 0:00:54.3]}
50. c4 {[%clk 0:00:12]} 50... Rb4 {[%clk 0:00:52.9]} 51. Kf5 {[%clk 0:00:12.5]}
51... Rxc4 {[%clk 0:00:52.9]} 52. Rxb6 {[%clk 0:00:12.6]} 52... Rh4 {[%clk
0:00:53.5]} 53. Rc6 {[%clk 0:00:09.5]} 53... Rxh5+ {[%clk 0:00:53.7]} 54. Kg4
{[%clk 0:00:10.4]} 54... Rg5+ {[%clk 0:00:54.1]} 55. Kf4 {[%clk 0:00:10.8]}
55... Rd5 {[%clk 0:00:51.4]} 56. Ke4 {[%clk 0:00:10.6]} 56... Rg5 {[%clk
0:00:50.7]} 57. Kf4 {[%clk 0:00:11.1]} 57... f6 {[%clk 0:00:51.3]} 58. Rd6
{[%clk 0:00:08.4]} 58... h5 {[%clk 0:00:50.9]} 59. Rc6 {[%clk 0:00:09.1]} 59...
h4 {[%clk 0:00:50.5]} 60. Rc7+ {[%clk 0:00:09.5]} 60... Kg6 {[%clk 0:00:50.7]}
61. Rc8 {[%clk 0:00:10.2]} 61... Rh5 {[%clk 0:00:46.9]} 62. Kg4 {[%clk
0:00:07.3]} 62... Rg5+ {[%clk 0:00:40.2]} 63. Kxh4 {[%clk 0:00:07.5]} 63... Kf7
{[%clk 0:00:40.5]} 64. Rc6 {[%clk 0:00:06.7]} 64... Ke7 {[%clk 0:00:39.9]} 65.
Kh3 {[%clk 0:00:05.3]} 65... Kf7 {[%clk 0:00:20.5]} 66. Kh4 {[%clk 0:00:05.5]}
66... Kg6 {[%clk 0:00:20.7]} 67. Kh3 {[%clk 0:00:05.4]} 67... Rd5 {[%clk
0:00:20.3]} 68. Kg4 {[%clk 0:00:05.3]} 68... Rd4+ {[%clk 0:00:20.2]} 69. Kf3
{[%clk 0:00:06]} 69... c4 {[%clk 0:00:20.7]} 70. Ke3 {[%clk 0:00:06.7]} 70...
Rh4 {[%clk 0:00:20.9]} 71. Kf3 {[%clk 0:00:04.9]} 71... Kg5 {[%clk 0:00:17.6]}
72. Kg3 {[%clk 0:00:02.4]} 72... f5 {[%clk 0:00:17.7]} 73. Rc5 {[%clk
0:00:02.4]} 73... Rd4 {[%clk 0:00:16.9]} 74. Kf3 {[%clk 0:00:03.1]} 74... Re4
{[%clk 0:00:14.5]} 75. Kg3 {[%clk 0:00:02]} 75... Re3+ {[%clk 0:00:14.7]} 76.
Kf2 {[%clk 0:00:02.4]} 76... Rc3 {[%clk 0:00:13.1]} 77. Ke2 {[%clk 0:00:03]}
77... Kg4 {[%clk 0:00:13.1]} 78. Kd2 {[%clk 0:00:03.2]} 78... Rd3+ {[%clk
0:00:13.7]} 79. Ke2 {[%clk 0:00:03.9]} 79... Rd4 {[%clk 0:00:14.3]} 80. Ke3
{[%clk 0:00:04]} 80... Re4+ {[%clk 0:00:14.6]} 81. Kf2 {[%clk 0:00:04]} 81...
Kf4 {[%clk 0:00:13.9]} 82. Rc8 {[%clk 0:00:03.9]} 82... Rd4 {[%clk 0:00:14]} 83.
Rc5 {[%clk 0:00:04.1]} 83... Rd2+ {[%clk 0:00:12.6]} 84. Ke1 {[%clk 0:00:04.4]}
84... Rd4 {[%clk 0:00:09.1]} 85. Ke2 {[%clk 0:00:04.8]} 85... Ke4 {[%clk
0:00:09.2]} 86. Kf2 {[%clk 0:00:05.2]} 86... Rd2+ {[%clk 0:00:07.5]} 87. Ke1
{[%clk 0:00:05.4]} 87... Rd4 {[%clk 0:00:06.4]} 88. Ke2 {[%clk 0:00:06]} 88...
f4 {[%clk 0:00:06.8]} 89. Rc8 {[%clk 0:00:06.3]} 89... f3+ {[%clk 0:00:07.2]}
90. Kf2 {[%clk 0:00:07]} 90... Rd2+ {[%clk 0:00:07]} 91. Ke1 {[%clk 0:00:07.7]}
91... Rc2 {[%clk 0:00:06.4]} 92. Re8+ {[%clk 0:00:07.2]} 92... Kd3 {[%clk
0:00:05.9]} 93. Rd8+ {[%clk 0:00:07.1]} 93... Ke3 {[%clk 0:00:06]} 94. Re8+
{[%clk 0:00:07.5]} 94... Kd4 {[%clk 0:00:06.5]} 95. Rf8 {[%clk 0:00:08.1]} 95...
f2+ {[%clk 0:00:06.6]} 96. Kf1 {[%clk 0:00:08.8]} 96... Kc3 {[%clk 0:00:06.7]}
97. Rd8 {[%clk 0:00:09.2]} 97... Rd2 {[%clk 0:00:06.7]} 98. Rc8 {[%clk
0:00:09.5]} 98... Kb3 {[%clk 0:00:07.2]} 99. Rb8+ {[%clk 0:00:10]} 99... Kc2
{[%clk 0:00:07.6]} 100. Rc8 {[%clk 0:00:10.9]} 100... c3 {[%clk 0:00:07.9]} 101.
Rb8 {[%clk 0:00:11.6]} 101... Kc1 {[%clk 0:00:07.9]} 102. Rc8 {[%clk 0:00:12.2]}
102... c2 {[%clk 0:00:08]} 103. Rc7 {[%clk 0:00:12.9]} 103... Kd1 {[%clk
0:00:08.3]} 0-1

[Event "Early-Titled-Tuesday-Blitz-July-09-2024"]
[Site "Chess.com"]
[Date "2024.07.09"]
[Round "9"]
[White "FollowRivers"]
[Black "AlexandraSamaganova"]
[Result "0-1"]
[WhiteElo "2494"]
[BlackElo "2377"]
[TimeControl "180+1"]
[EndTime "9:41:01 PDT"]
[Termination "AlexandraSamaganova won by resignation"]

1. e4 {[%clk 0:03:00.9]} 1... e6 {[%clk 0:02:57.3]} 2. d4 {[%clk 0:02:59.1]}
2... d5 {[%clk 0:02:56.4]} 3. exd5 {[%clk 0:02:59.6]} 3... exd5 {[%clk
0:02:56.1]} 4. Bd3 {[%clk 0:02:59.9]} 4... Nc6 {[%clk 0:02:52.6]} 5. c3 {[%clk
0:02:58.6]} 5... Bd6 {[%clk 0:02:42.7]} 6. Qf3 {[%clk 0:02:56.9]} 6... Nge7
{[%clk 0:02:40.7]} 7. Ne2 {[%clk 0:02:55.8]} 7... O-O {[%clk 0:02:37.2]} 8. Ng3
{[%clk 0:02:43.1]} 8... Be6 {[%clk 0:02:13.1]} 9. Be3 {[%clk 0:02:39.8]} 9...
Qd7 {[%clk 0:02:06.6]} 10. Nd2 {[%clk 0:02:16.4]} 10... Bg4 {[%clk 0:01:53.2]}
0-1